[Event "Live Chess"]
[Site "Chess.com"]
[Date "2024.06.02"]
[Round "-"]
[White "Duke_of_Bebington"]
[Black "Hazban"]
[Result "0-1"]
[WhiteElo "1578"]
[BlackElo "2055"]
[TimeControl "300"]
[EndTime "8:02:17 PDT"]
[Termination "Hazban won by resignation"]

1. e4 {[%clk 0:04:58.5]} 1... c6 {[%clk 0:04:58.9]} 2. d4 {[%clk 0:04:57.2]}
2... d5 {[%clk 0:04:58.8]} 3. e5 {[%clk 0:04:56.3]} 3... c5 {[%clk 0:04:58]} 4.
c3 {[%clk 0:04:54.8]} 4... Nc6 {[%clk 0:04:56.7]} 5. Ne2 {[%clk 0:04:51.5]} 5...
cxd4 {[%clk 0:04:51.9]} 6. cxd4 {[%clk 0:04:48.5]} 6... Qb6 {[%clk 0:04:50.8]}
7. Nbc3 {[%clk 0:04:46.7]} 7... Bg4 {[%clk 0:04:48.5]} 8. Nxd5 {[%clk
0:04:39.8]} 8... Qa5+ {[%clk 0:04:41.8]} 9. Ndc3 {[%clk 0:04:38.3]} 9... O-O-O
{[%clk 0:04:37.6]} 10. Be3 {[%clk 0:04:28.5]} 10... e6 {[%clk 0:04:27.6]} 11. a3
{[%clk 0:04:20.1]} 11... Nxe5 {[%clk 0:04:24.3]} 12. Qc2 {[%clk 0:04:12.1]}
12... Nc6 {[%clk 0:04:19.1]} 13. h3 {[%clk 0:04:06.6]} 13... Bf5 {[%clk
0:04:17.2]} 14. Qb3 {[%clk 0:04:01.4]} 14... Nf6 {[%clk 0:04:09]} 15. Ng3 {[%clk
0:03:45.9]} 15... Bg6 {[%clk 0:04:05.9]} 16. Bb5 {[%clk 0:03:37.9]} 16... Nxd4
{[%clk 0:03:58.3]} 17. Bxd4 {[%clk 0:03:18.9]} 17... Rxd4 {[%clk 0:03:56.8]} 18.
O-O {[%clk 0:03:07.4]} 18... Be7 {[%clk 0:03:48.2]} 19. Rac1 {[%clk 0:03:04.6]}
19... Kb8 {[%clk 0:03:38]} 0-1

[Event "Live Chess"]
[Site "Chess.com"]
[Date "2024.06.02"]
[Round "-"]
[White "matt1979"]
[Black "Purple1szed"]
[Result "0-1"]
[WhiteElo "1418"]
[BlackElo "2008"]
[TimeControl "300"]
[EndTime "8:02:18 PDT"]
[Termination "Purple1szed won by resignation"]

1. f4 {[%clk 0:04:59.4]} 1... d5 {[%clk 0:04:58.9]} 2. Nf3 {[%clk 0:04:57]} 2...
c5 {[%clk 0:04:58.4]} 3. e3 {[%clk 0:04:56.4]} 3... Nc6 {[%clk 0:04:57.9]} 4.
Bb5 {[%clk 0:04:55.7]} 4... Qd7 {[%clk 0:04:56.7]} 5. O-O {[%clk 0:04:53.1]}
5... f6 {[%clk 0:04:54.6]} 6. b3 {[%clk 0:04:48.3]} 6... a6 {[%clk 0:04:53.9]}
7. Bxc6 {[%clk 0:04:47.3]} 7... bxc6 {[%clk 0:04:53.8]} 8. Bb2 {[%clk
0:04:46.5]} 8... e6 {[%clk 0:04:52.8]} 9. d3 {[%clk 0:04:40.2]} 9... Bd6 {[%clk
0:04:52.1]} 10. Qe1 {[%clk 0:04:36]} 10... Ne7 {[%clk 0:04:51.3]} 11. Qh4 {[%clk
0:04:34.2]} 11... a5 {[%clk 0:04:48.1]} 12. Nbd2 {[%clk 0:04:29.6]} 12... Nf5
{[%clk 0:04:46.6]} 13. Qf2 {[%clk 0:04:26.1]} 13... Ba6 {[%clk 0:04:39.9]} 14.
g4 {[%clk 0:04:20.6]} 14... Ne7 {[%clk 0:04:33.9]} 15. a4 {[%clk 0:04:03.9]}
15... O-O-O {[%clk 0:04:31.8]} 16. Ba3 {[%clk 0:03:45.3]} 16... h5 {[%clk
0:04:27]} 17. h3 {[%clk 0:03:35.3]} 17... hxg4 {[%clk 0:04:25.4]} 18. hxg4
{[%clk 0:03:34.5]} 18... g5 {[%clk 0:04:25.1]} 19. Nh2 {[%clk 0:03:21]} 19...
gxf4 {[%clk 0:04:22.4]} 20. exf4 {[%clk 0:03:19.9]} 20... Rdg8 {[%clk
0:04:21.4]} 21. Qe2 {[%clk 0:03:01.7]} 21... Nf5 {[%clk 0:04:17.9]} 22. Rf3
{[%clk 0:02:45.3]} 22... Nd4 {[%clk 0:04:10.8]} 23. Qf2 {[%clk 0:02:38.9]} 23...
Nxf3+ {[%clk 0:04:09.9]} 24. Qxf3 {[%clk 0:02:37.2]} 24... e5 {[%clk 0:04:08.5]}
25. f5 {[%clk 0:02:32.1]} 25... e4 {[%clk 0:03:59.7]} 0-1

[Event "Live Chess"]
[Site "Chess.com"]
[Date "2024.06.02"]
[Round "-"]
[White "TheSmoulderingMaster"]
[Black "LL220284LL"]
[Result "0-1"]
[WhiteElo "1778"]
[BlackElo "2467"]
[TimeControl "300"]
[EndTime "8:02:18 PDT"]
[Termination "LL220284LL won by resignation"]

1. e4 {[%clk 0:04:55.6]} 1... g6 {[%clk 0:04:59.5]} 2. d4 {[%clk 0:04:53.4]}
2... Bg7 {[%clk 0:04:57.9]} 3. Nc3 {[%clk 0:04:52.4]} 3... d6 {[%clk 0:04:57.3]}
4. Nf3 {[%clk 0:04:50.9]} 4... Bg4 {[%clk 0:04:55]} 5. Be2 {[%clk 0:04:47.3]}
5... Nc6 {[%clk 0:04:53.4]} 6. Be3 {[%clk 0:04:43.9]} 6... e6 {[%clk 0:04:51.7]}
7. h3 {[%clk 0:04:42.9]} 7... Bxf3 {[%clk 0:04:50.2]} 8. Bxf3 {[%clk 0:04:42.1]}
8... Nge7 {[%clk 0:04:49.5]} 9. O-O {[%clk 0:04:38.8]} 9... O-O {[%clk 0:04:48]}
10. Qd2 {[%clk 0:04:36.6]} 10... Re8 {[%clk 0:04:46.5]} 11. d5 {[%clk
0:04:35.5]} 11... exd5 {[%clk 0:04:43.9]} 12. exd5 {[%clk 0:04:34.5]} 12... Ne5
{[%clk 0:04:42.8]} 13. Bh6 {[%clk 0:04:30.4]} 13... Nxf3+ {[%clk 0:04:41.2]} 14.
gxf3 {[%clk 0:04:29.2]} 14... Bxh6 {[%clk 0:04:38.5]} 15. Qxh6 {[%clk
0:04:26.5]} 15... Nf5 {[%clk 0:04:38.1]} 16. Qf4 {[%clk 0:04:24.5]} 16... Qh4
{[%clk 0:04:28.3]} 17. Qg4 {[%clk 0:04:21.6]} 17... h5 {[%clk 0:04:24.7]} 18.
Qxh4 {[%clk 0:04:19]} 18... Nxh4 {[%clk 0:04:24.6]} 19. f4 {[%clk 0:04:16]}
19... Re7 {[%clk 0:04:16.1]} 20. Kh2 {[%clk 0:04:14.2]} 20... Rae8 {[%clk
0:04:14.8]} 21. Kg3 {[%clk 0:04:12.4]} 21... Nf5+ {[%clk 0:04:13.7]} 22. Kf3
{[%clk 0:04:10.4]} 22... Nd4+ {[%clk 0:04:12.8]} 23. Kg3 {[%clk 0:04:06.1]}
23... Nxc2 {[%clk 0:04:12.1]} 24. Rac1 {[%clk 0:04:04.3]} 24... Nd4 {[%clk
0:04:11.3]} 25. Rfe1 {[%clk 0:04:01]} 25... Rxe1 {[%clk 0:04:08.1]} 0-1

[Event "Live Chess"]
[Site "Chess.com"]
[Date "2024.06.02"]
[Round "-"]
[White "GEMdzq"]
[Black "RichardABates"]
[Result "1-0"]
[WhiteElo "2284"]
[BlackElo "2368"]
[TimeControl "300"]
[EndTime "8:02:27 PDT"]
[Termination "GEMdzq won on time"]

1. e4 {[%clk 0:04:57.9]} 1... c5 {[%clk 0:04:58.6]} 2. d4 {[%clk 0:04:57.1]}
2... cxd4 {[%clk 0:04:57.4]} 3. c3 {[%clk 0:04:56.8]} 3... Nf6 {[%clk
0:04:55.7]} 4. e5 {[%clk 0:04:55.8]} 4... Nd5 {[%clk 0:04:54.5]} 5. Qxd4 {[%clk
0:04:55.3]} 5... e6 {[%clk 0:04:53.4]} 6. Bd3 {[%clk 0:04:53.7]} 6... Nc6 {[%clk
0:04:51.4]} 7. Qe4 {[%clk 0:04:52.8]} 7... f5 {[%clk 0:04:49.8]} 8. exf6 {[%clk
0:04:51.6]} 8... Nxf6 {[%clk 0:04:48.4]} 9. Qh4 {[%clk 0:04:50.5]} 9... Be7
{[%clk 0:04:45.6]} 10. Nf3 {[%clk 0:04:43.7]} 10... O-O {[%clk 0:04:43.2]} 11.
Bg5 {[%clk 0:04:42]} 11... h6 {[%clk 0:04:37.9]} 12. Bxf6 {[%clk 0:04:41]} 12...
Bxf6 {[%clk 0:04:36.5]} 13. Qe4 {[%clk 0:04:39.6]} 13... Ne7 {[%clk 0:04:27.6]}
14. Nbd2 {[%clk 0:04:31.5]} 14... d5 {[%clk 0:04:24]} 15. Qe2 {[%clk 0:04:30.1]}
15... Qc7 {[%clk 0:04:12.6]} 16. O-O {[%clk 0:04:24.8]} 16... e5 {[%clk
0:04:11.1]} 17. Bc2 {[%clk 0:04:18.2]} 17... Bg4 {[%clk 0:04:04.2]} 18. h3
{[%clk 0:04:16.8]} 18... Bh5 {[%clk 0:04:02.8]} 19. Bb3 {[%clk 0:04:14.3]} 19...
e4 {[%clk 0:03:54.6]} 20. Qxe4 {[%clk 0:04:08.4]} 20... Bg6 {[%clk 0:03:38.5]}
21. Qa4 {[%clk 0:03:47.2]} 21... Kh8 {[%clk 0:03:30.7]} 22. Rfe1 {[%clk
0:03:45.9]} 22... a6 {[%clk 0:03:25.3]} 23. Nd4 {[%clk 0:03:41.2]} 23... Qf4
{[%clk 0:02:53.3]} 24. N2f3 {[%clk 0:03:29.8]} 24... b5 {[%clk 0:02:45.3]} 25.
Qb4 {[%clk 0:03:10.2]} 25... Bxd4 {[%clk 0:02:41.6]} 26. Qxd4 {[%clk 0:03:08.5]}
26... Be4 {[%clk 0:02:39.7]} 27. Bxd5 {[%clk 0:02:13.3]} 27... Bxd5 {[%clk
0:01:32.3]} 28. Qxf4 {[%clk 0:02:11.4]} 28... Rxf4 {[%clk 0:01:30.2]} 29. Rxe7
{[%clk 0:02:11]} 29... Bxf3 {[%clk 0:01:29.3]} 30. gxf3 {[%clk 0:02:10.9]} 30...
Rxf3 {[%clk 0:01:28.2]} 31. Kg2 {[%clk 0:02:08]} 31... Raf8 {[%clk 0:01:20.5]}
32. Re2 {[%clk 0:02:02.3]} 32... Rd3 {[%clk 0:01:16.6]} 33. a4 {[%clk
0:01:58.8]} 33... Rf5 {[%clk 0:01:10.8]} 34. axb5 {[%clk 0:01:34.5]} 34... axb5
{[%clk 0:01:09.7]} 35. Ra8+ {[%clk 0:01:32.7]} 35... Kh7 {[%clk 0:01:08.3]} 36.
Rae8 {[%clk 0:01:28.4]} 36... b4 {[%clk 0:00:52.8]} 37. R8e3 {[%clk 0:01:24.1]}
37... Rfd5 {[%clk 0:00:37.8]} 38. Rxd3 {[%clk 0:01:22.9]} 38... Rxd3 {[%clk
0:00:36.8]} 39. Re3 {[%clk 0:01:04.8]} 39... Rd2 {[%clk 0:00:34.9]} 40. cxb4
{[%clk 0:01:03.1]} 40... Rxb2 {[%clk 0:00:33.6]} 41. Re4 {[%clk 0:01:02.3]}
41... Kg6 {[%clk 0:00:32.2]} 42. Rf4 {[%clk 0:00:59.2]} 42... Kg5 {[%clk
0:00:30.6]} 43. Kg3 {[%clk 0:00:57.5]} 43... Rb3+ {[%clk 0:00:29.4]} 44. f3
{[%clk 0:00:56.8]} 44... Rb1 {[%clk 0:00:27]} 45. h4+ {[%clk 0:00:55.5]} 45...
Kh5 {[%clk 0:00:25.3]} 46. Rf5+ {[%clk 0:00:53.2]} 46... g5 {[%clk 0:00:24.2]}
47. hxg5 {[%clk 0:00:47.1]} 47... hxg5 {[%clk 0:00:23]} 48. f4 {[%clk
0:00:30.2]} 48... Rb3+ {[%clk 0:00:21.5]} 49. Kf2 {[%clk 0:00:28.6]} 49... Kg4
{[%clk 0:00:20.3]} 50. Rxg5+ {[%clk 0:00:24.5]} 50... Kxf4 {[%clk 0:00:19.3]}
51. Rb5 {[%clk 0:00:23.2]} 51... Rb2+ {[%clk 0:00:18.3]} 52. Ke1 {[%clk
0:00:22]} 52... Ke3 {[%clk 0:00:17.4]} 53. Kd1 {[%clk 0:00:21]} 53... Kd3 {[%clk
0:00:16.6]} 54. Kc1 {[%clk 0:00:19.7]} 54... Rb3 {[%clk 0:00:15.8]} 55. Rd5+
{[%clk 0:00:16]} 55... Kc4 {[%clk 0:00:14.6]} 56. Rh5 {[%clk 0:00:15]} 56...
Kxb4 {[%clk 0:00:13.4]} 57. Rh4+ {[%clk 0:00:13.8]} 57... Ka3 {[%clk 0:00:12.6]}
58. Rh8 {[%clk 0:00:13]} 58... Rc3+ {[%clk 0:00:11.5]} 59. Kd2 {[%clk
0:00:11.9]} 59... Rb3 {[%clk 0:00:10.7]} 60. Ra8+ {[%clk 0:00:11.8]} 60... Kb4
{[%clk 0:00:09.4]} 61. Rb8+ {[%clk 0:00:11.2]} 61... Kc4 {[%clk 0:00:08.8]} 62.
Rc8+ {[%clk 0:00:10.7]} 62... Kd4 {[%clk 0:00:08.1]} 63. Rd8+ {[%clk 0:00:10.3]}
63... Kc4 {[%clk 0:00:07.6]} 64. Rc8+ {[%clk 0:00:09.6]} 64... Kd4 {[%clk
0:00:07]} 65. Kc2 {[%clk 0:00:09.1]} 65... Rb4 {[%clk 0:00:05.6]} 66. Rd8+
{[%clk 0:00:08.9]} 66... Kc4 {[%clk 0:00:04.8]} 67. Rc8+ {[%clk 0:00:07.6]}
67... Kd4 {[%clk 0:00:04.1]} 68. Rh8 {[%clk 0:00:07.3]} 68... Rc4+ {[%clk
0:00:02.9]} 69. Kd2 {[%clk 0:00:06.8]} 69... Ra4 {[%clk 0:00:02.6]} 70. Rh4+
{[%clk 0:00:05.6]} 70... Kc5 {[%clk 0:00:02.1]} 71. Rxa4 {[%clk 0:00:05.5]}
71... Kb5 {[%clk 0:00:01.8]} 72. Re4 {[%clk 0:00:04.5]} 72... Kc6 {[%clk
0:00:01.4]} 73. Kd3 {[%clk 0:00:04.4]} 73... Kd6 {[%clk 0:00:01]} 74. Kd4 {[%clk
0:00:03.7]} 74... Kc6 {[%clk 0:00:00.9]} 75. Re5 {[%clk 0:00:03.4]} 75... Kd6
{[%clk 0:00:00.8]} 76. Rd5+ {[%clk 0:00:02.9]} 76... Kc6 {[%clk 0:00:00.7]} 77.
Rh5 {[%clk 0:00:02.4]} 77... Kc7 {[%clk 0:00:00.6]} 78. Rh6 {[%clk 0:00:01.7]}
1-0

[Event "Live Chess"]
[Site "Chess.com"]
[Date "2024.06.02"]
[Round "-"]
[White "f4nomore"]
[Black "joellloyd"]
[Result "0-1"]
[WhiteElo "1276"]
[BlackElo "1901"]
[TimeControl "300"]
[EndTime "8:02:34 PDT"]
[Termination "joellloyd won by checkmate"]

1. Nf3 {[%clk 0:04:50.7]} 1... c6 {[%clk 0:04:59.5]} 2. e3 {[%clk 0:04:49.7]}
2... d5 {[%clk 0:04:59.4]} 3. d4 {[%clk 0:04:48.7]} 3... Nf6 {[%clk 0:04:59.1]}
4. Be2 {[%clk 0:04:47.4]} 4... Bg4 {[%clk 0:04:58.7]} 5. O-O {[%clk 0:04:45.7]}
5... e6 {[%clk 0:04:58.3]} 6. Ne5 {[%clk 0:04:44.2]} 6... Bxe2 {[%clk
0:04:56.9]} 7. Qxe2 {[%clk 0:04:42.4]} 7... Nbd7 {[%clk 0:04:56.8]} 8. Nf3
{[%clk 0:04:38.7]} 8... Bd6 {[%clk 0:04:55.3]} 9. c4 {[%clk 0:04:36.6]} 9... O-O
{[%clk 0:04:53.6]} 10. c5 {[%clk 0:04:33.9]} 10... Bc7 {[%clk 0:04:52.4]} 11.
Nc3 {[%clk 0:04:32.5]} 11... e5 {[%clk 0:04:51.2]} 12. b4 {[%clk 0:03:59.9]}
12... Re8 {[%clk 0:04:49.2]} 13. b5 {[%clk 0:03:57.9]} 13... e4 {[%clk
0:04:37.4]} 14. Nd2 {[%clk 0:03:54.9]} 14... Nf8 {[%clk 0:04:33.8]} 15. bxc6
{[%clk 0:03:51.1]} 15... bxc6 {[%clk 0:04:32.6]} 16. Nb3 {[%clk 0:03:45.9]}
16... Qd7 {[%clk 0:04:14.4]} 17. f3 {[%clk 0:03:43.5]} 17... Ng6 {[%clk
0:04:07.4]} 18. fxe4 {[%clk 0:03:40.2]} 18... Nxe4 {[%clk 0:04:05.9]} 19. Nxe4
{[%clk 0:03:36.2]} 19... Rxe4 {[%clk 0:04:05.8]} 20. Qf3 {[%clk 0:03:32.1]}
20... Rae8 {[%clk 0:04:04]} 21. Bd2 {[%clk 0:03:28]} 21... f6 {[%clk 0:03:59.6]}
22. h3 {[%clk 0:03:22.2]} 22... Qe6 {[%clk 0:03:36.9]} 23. Rae1 {[%clk
0:03:19.9]} 23... Qf7 {[%clk 0:03:00.9]} 24. Bc1 {[%clk 0:03:17.1]} 24... R8e6
{[%clk 0:02:56.6]} 25. Nd2 {[%clk 0:03:14.1]} 25... Rh4 {[%clk 0:02:49]} 26. e4
{[%clk 0:03:01.9]} 26... Rf4 {[%clk 0:02:34.3]} 27. Qe3 {[%clk 0:02:51.7]} 27...
Rxf1+ {[%clk 0:02:31.9]} 28. Kxf1 {[%clk 0:02:46.7]} 28... dxe4 {[%clk
0:02:23.8]} 29. Nxe4 {[%clk 0:02:39.7]} 29... f5 {[%clk 0:02:13.5]} 30. Nf6+
{[%clk 0:02:28.7]} 30... Rxf6 {[%clk 0:02:07.3]} 31. Qe8+ {[%clk 0:02:22.9]}
31... Qxe8 {[%clk 0:02:06]} 32. Rxe8+ {[%clk 0:02:20.7]} 32... Kf7 {[%clk
0:02:01.9]} 33. Rc8 {[%clk 0:02:18]} 33... Bf4 {[%clk 0:01:57]} 34. Bb2 {[%clk
0:02:10.1]} 34... Re6 {[%clk 0:01:51.7]} 35. Kf2 {[%clk 0:02:07.6]} 35... Be3+
{[%clk 0:01:46.1]} 36. Kf3 {[%clk 0:02:00.4]} 36... f4 {[%clk 0:01:37.3]} 37.
Rc7+ {[%clk 0:01:57.4]} 37... Re7 {[%clk 0:01:34.7]} 38. Rxc6 {[%clk 0:01:55.6]}
38... Nh4+ {[%clk 0:01:32]} 39. Kg4 {[%clk 0:01:51.7]} 39... Nxg2 {[%clk
0:01:30.7]} 40. Ba3 {[%clk 0:01:46]} 40... g6 {[%clk 0:01:26.4]} 41. Ra6 {[%clk
0:01:43.8]} 41... h5+ {[%clk 0:01:24.1]} 42. Kf3 {[%clk 0:01:34.6]} 42... Nh4+
{[%clk 0:01:21.6]} 43. Ke2 {[%clk 0:01:26.2]} 43... Bxd4+ {[%clk 0:01:20.3]} 44.
Kd3 {[%clk 0:01:24.6]} 44... Be3 {[%clk 0:01:15.3]} 45. c6 {[%clk 0:01:22]}
45... Re6 {[%clk 0:00:51]} 46. Kc4 {[%clk 0:01:12.1]} 46... Nf5 {[%clk
0:00:47.8]} 47. Kd5 {[%clk 0:01:09.1]} 47... Bb6 {[%clk 0:00:43.2]} 48. c7
{[%clk 0:00:55.4]} 48... Ne3# {[%clk 0:00:42.2]} 0-1

[Event "Live Chess"]
[Site "Chess.com"]
[Date "2024.06.02"]
[Round "-"]
[White "Step-S"]
[Black "degringolade64"]
[Result "0-1"]
[WhiteElo "1259"]
[BlackElo "2081"]
[TimeControl "300"]
[EndTime "8:02:44 PDT"]
[Termination "degringolade64 won by resignation"]

1. e4 {[%clk 0:04:56.9]} 1... e5 {[%clk 0:04:58.7]} 2. d4 {[%clk 0:04:56]} 2...
exd4 {[%clk 0:04:57]} 3. f4 {[%clk 0:04:55.5]} 3... d5 {[%clk 0:04:36.5]} 4.
exd5 {[%clk 0:04:50.5]} 4... Qxd5 {[%clk 0:04:29]} 5. Nf3 {[%clk 0:04:49.1]}
5... Nc6 {[%clk 0:04:26.4]} 6. Nc3 {[%clk 0:04:40.6]} 6... Bb4 {[%clk
0:04:23.6]} 7. Qd3 {[%clk 0:04:15.7]} 7... Bf5 {[%clk 0:04:16.2]} 8. Qd2 {[%clk
0:04:01.5]} 8... O-O-O {[%clk 0:04:10.6]} 9. Bd3 {[%clk 0:03:54.7]} 9... dxc3
{[%clk 0:04:06.5]} 10. bxc3 {[%clk 0:03:47.9]} 10... Bxd3 {[%clk 0:04:05.4]} 11.
cxb4 {[%clk 0:03:40.6]} 11... Qe4+ {[%clk 0:03:58.5]} 12. Kf2 {[%clk 0:03:27.3]}
12... Bxc2 {[%clk 0:03:57.4]} 13. Qe3 {[%clk 0:03:11.3]} 13... Nf6 {[%clk
0:03:53.1]} 14. Re1 {[%clk 0:02:58.9]} 14... Ng4+ {[%clk 0:03:51.4]} 0-1

[Event "Live Chess"]
[Site "Chess.com"]
[Date "2024.06.02"]
[Round "-"]
[White "gobbles19"]
[Black "ACM42"]
[Result "1-0"]
[WhiteElo "2223"]
[BlackElo "2166"]
[TimeControl "300"]
[EndTime "8:03:01 PDT"]
[Termination "gobbles19 won by checkmate"]

1. e4 {[%clk 0:04:57.7]} 1... e6 {[%clk 0:04:58.6]} 2. d4 {[%clk 0:04:56.5]}
2... d5 {[%clk 0:04:57.5]} 3. Nc3 {[%clk 0:04:56.2]} 3... Bb4 {[%clk 0:04:54.7]}
4. e5 {[%clk 0:04:54.1]} 4... c5 {[%clk 0:04:53.9]} 5. Bd2 {[%clk 0:04:52.5]}
5... Ne7 {[%clk 0:04:50.3]} 6. Nb5 {[%clk 0:04:51.4]} 6... O-O {[%clk
0:04:44.7]} 7. Bxb4 {[%clk 0:04:48.2]} 7... cxb4 {[%clk 0:04:43.1]} 8. f4 {[%clk
0:04:45.5]} 8... Nbc6 {[%clk 0:04:32.6]} 9. Nf3 {[%clk 0:04:44.4]} 9... a6
{[%clk 0:04:31.3]} 10. Nd6 {[%clk 0:04:42.9]} 10... Nf5 {[%clk 0:04:30.6]} 11.
Nxf5 {[%clk 0:04:41.3]} 11... exf5 {[%clk 0:04:30.5]} 12. Bd3 {[%clk 0:04:40.4]}
12... Be6 {[%clk 0:04:23]} 13. O-O {[%clk 0:04:37.4]} 13... Rc8 {[%clk
0:04:15.5]} 14. Qe2 {[%clk 0:04:22.5]} 14... Qb6 {[%clk 0:03:59.5]} 15. Qf2
{[%clk 0:04:20.6]} 15... Na5 {[%clk 0:03:46.1]} 16. Kh1 {[%clk 0:04:11.4]} 16...
Nc4 {[%clk 0:03:44.8]} 17. Rab1 {[%clk 0:04:00.6]} 17... a5 {[%clk 0:03:40.6]}
18. c3 {[%clk 0:03:54.4]} 18... bxc3 {[%clk 0:03:30]} 19. bxc3 {[%clk
0:03:53.2]} 19... Qc7 {[%clk 0:03:17.3]} 20. Rfc1 {[%clk 0:03:49.8]} 20... Qe7
{[%clk 0:03:11]} 21. Qc2 {[%clk 0:03:36.7]} 21... Na3 {[%clk 0:02:50.5]} 22. Qb2
{[%clk 0:03:35.9]} 22... Nxb1 {[%clk 0:02:47.2]} 23. Rxb1 {[%clk 0:03:35.8]}
23... Rc7 {[%clk 0:02:42.2]} 24. Nd2 {[%clk 0:03:26.1]} 24... Rfc8 {[%clk
0:02:39.1]} 25. Rc1 {[%clk 0:03:24.1]} 25... Qh4 {[%clk 0:02:09.4]} 26. g3
{[%clk 0:03:20.5]} 26... Qe7 {[%clk 0:02:04.9]} 27. Nb3 {[%clk 0:03:18.8]} 27...
b6 {[%clk 0:02:01.8]} 28. Nd2 {[%clk 0:03:16]} 28... Rb8 {[%clk 0:01:53.4]} 29.
a4 {[%clk 0:03:06.4]} 29... h5 {[%clk 0:01:49.3]} 30. Nf3 {[%clk 0:03:00.3]}
30... g6 {[%clk 0:01:43.8]} 31. Rb1 {[%clk 0:02:51.8]} 31... Bd7 {[%clk
0:01:41.5]} 32. Qb3 {[%clk 0:02:47.4]} 32... Qe8 {[%clk 0:01:31.5]} 33. Ra1
{[%clk 0:02:37.9]} 33... Rbc8 {[%clk 0:01:20.9]} 34. Qxb6 {[%clk 0:02:36.3]}
34... Rxc3 {[%clk 0:01:18.4]} 35. Be2 {[%clk 0:02:33.3]} 35... Rc2 {[%clk
0:01:00.2]} 36. Bf1 {[%clk 0:02:22.4]} 36... Rc1 {[%clk 0:00:54.1]} 37. Rxc1
{[%clk 0:02:20.3]} 37... Rxc1 {[%clk 0:00:53.4]} 38. Kg1 {[%clk 0:02:19.4]}
38... Bxa4 {[%clk 0:00:50.7]} 39. Qxa5 {[%clk 0:02:14.2]} 39... Qb5 {[%clk
0:00:42.4]} 40. Qd8+ {[%clk 0:02:11.7]} 40... Kh7 {[%clk 0:00:39.3]} 41. Ng5+
{[%clk 0:02:09.7]} 41... Kg7 {[%clk 0:00:32.3]} 42. Qf6+ {[%clk 0:02:07.8]}
42... Kg8 {[%clk 0:00:30.7]} 43. Qxf7+ {[%clk 0:02:07.1]} 43... Kh8 {[%clk
0:00:28.8]} 44. Qh7# {[%clk 0:02:06.8]} 1-0

[Event "Live Chess"]
[Site "Chess.com"]
[Date "2024.06.02"]
[Round "-"]
[White "agamilewska"]
[Black "Bradfield133"]
[Result "1-0"]
[WhiteElo "1802"]
[BlackElo "1837"]
[TimeControl "300"]
[EndTime "8:03:04 PDT"]
[Termination "agamilewska won on time"]

1. d4 {[%clk 0:04:57.1]} 1... d6 {[%clk 0:04:58]} 2. c4 {[%clk 0:04:56.2]} 2...
f5 {[%clk 0:04:57]} 3. Nf3 {[%clk 0:04:53.7]} 3... Nf6 {[%clk 0:04:55.9]} 4. Nc3
{[%clk 0:04:52.8]} 4... c6 {[%clk 0:04:54.9]} 5. Bg5 {[%clk 0:04:51.6]} 5...
Nbd7 {[%clk 0:04:53.2]} 6. Bxf6 {[%clk 0:04:50.9]} 6... Nxf6 {[%clk 0:04:49.9]}
7. e3 {[%clk 0:04:50.8]} 7... Qc7 {[%clk 0:04:45.2]} 8. Be2 {[%clk 0:04:48.2]}
8... e5 {[%clk 0:04:43.7]} 9. dxe5 {[%clk 0:04:47]} 9... dxe5 {[%clk 0:04:41.9]}
10. O-O {[%clk 0:04:45.6]} 10... Be7 {[%clk 0:04:39.4]} 11. Rc1 {[%clk
0:04:42.1]} 11... O-O {[%clk 0:04:35.5]} 12. a3 {[%clk 0:04:41.5]} 12... a5
{[%clk 0:04:32.3]} 13. b4 {[%clk 0:04:39.9]} 13... axb4 {[%clk 0:04:29.9]} 14.
axb4 {[%clk 0:04:39.8]} 14... Bxb4 {[%clk 0:04:25.2]} 15. Qb3 {[%clk 0:04:31.2]}
15... Bc5 {[%clk 0:04:21.4]} 16. Rfd1 {[%clk 0:04:22.8]} 16... Ra3 {[%clk
0:04:03.1]} 17. Qb2 {[%clk 0:04:17.6]} 17... Re8 {[%clk 0:03:46.8]} 18. Ra1
{[%clk 0:04:15.3]} 18... Rxa1 {[%clk 0:03:43.5]} 19. Rxa1 {[%clk 0:04:15.2]}
19... e4 {[%clk 0:03:14.6]} 20. Nd4 {[%clk 0:04:08]} 20... Qe5 {[%clk
0:03:11.4]} 21. Nb3 {[%clk 0:03:36.7]} 21... Bd6 {[%clk 0:02:59.9]} 22. g3
{[%clk 0:03:32.3]} 22... Bb4 {[%clk 0:02:58.2]} 23. Rc1 {[%clk 0:03:30.6]} 23...
Rd8 {[%clk 0:02:46.4]} 24. Nd4 {[%clk 0:03:21.3]} 24... Bc5 {[%clk 0:02:35]} 25.
Nc2 {[%clk 0:02:28.8]} 25... Rd2 {[%clk 0:02:19.2]} 26. Qb3 {[%clk 0:02:23.8]}
26... Nd7 {[%clk 0:02:00.7]} 27. f4 {[%clk 0:02:09.5]} 27... exf3 {[%clk
0:01:53.9]} 28. Bxf3 {[%clk 0:02:08.4]} 28... Bxe3+ {[%clk 0:01:45.7]} 29. Kh1
{[%clk 0:01:54.2]} 29... Rd3 {[%clk 0:01:39.6]} 30. c5+ {[%clk 0:01:45]} 30...
Kf8 {[%clk 0:01:25.9]} 31. Ne1 {[%clk 0:01:36.2]} 31... Bxc1 {[%clk 0:01:02.6]}
32. Nxd3 {[%clk 0:01:31.3]} 32... Qe3 {[%clk 0:00:58.4]} 33. Qd1 {[%clk
0:01:04.3]} 33... Bd2 {[%clk 0:00:46.4]} 34. Qe2 {[%clk 0:00:49.9]} 34... Qxe2
{[%clk 0:00:34.7]} 35. Nxe2 {[%clk 0:00:49.3]} 35... Nf6 {[%clk 0:00:29.1]} 36.
Kg2 {[%clk 0:00:48.1]} 36... Be6 {[%clk 0:00:21.2]} 37. Nf2 {[%clk 0:00:46.2]}
37... Be3 {[%clk 0:00:14.3]} 38. Nc3 {[%clk 0:00:43]} 38... Bxc5 {[%clk
0:00:11.3]} 39. h3 {[%clk 0:00:39.8]} 39... Bxf2 {[%clk 0:00:09.5]} 40. Kxf2
{[%clk 0:00:38.9]} 40... Nd5 {[%clk 0:00:08.6]} 41. Nxd5 {[%clk 0:00:37.6]}
41... Bxd5 {[%clk 0:00:07.8]} 42. Bxd5 {[%clk 0:00:37.1]} 42... cxd5 {[%clk
0:00:07.1]} 43. Ke3 {[%clk 0:00:37]} 43... Ke7 {[%clk 0:00:06.2]} 44. Kd4 {[%clk
0:00:36.3]} 44... Kd6 {[%clk 0:00:06.1]} 45. g4 {[%clk 0:00:34.8]} 45... b5
{[%clk 0:00:05.8]} 46. gxf5 {[%clk 0:00:33.9]} 46... b4 {[%clk 0:00:05.1]} 47.
h4 {[%clk 0:00:32.3]} 47... b3 {[%clk 0:00:03.7]} 48. Kc3 {[%clk 0:00:31.6]}
48... Ke5 {[%clk 0:00:01.9]} 49. Kxb3 {[%clk 0:00:30.6]} 49... Kxf5 {[%clk
0:00:00.7]} 50. Kc3 {[%clk 0:00:30.2]} 1-0